bitfinex/quotes_ETHUSD_20260117
["timestamp","ask_amount","ask_price","bid_price","bid_amount"]
[1768650667005,1.6228413,3299.7,3299.5,0.001]
[1768650667210,1.6228413,3299.7,3299.2,0.5]
[1768650668523,4.65349059,3299.7,3299.2,0.5]
[1768650668725,1.6228413,3299.6,3299.2,0.5]
[1768650671667,4.6535287,3299.6,3299.2,0.5]
[1768650672559,1.6228413,3299.5,3299.2,0.5]
[1768650674662,1.6228413,3299.5,3299.1,0.001]
[1768650676277,1.6228413,3299.4,3299.1,0.001]
[1768650678329,1.6228413,3299.3,3299.1,0.001]
[1768650678758,3.03090568,3299.4,3299.1,0.001]
[1768650679780,4.65364262,3299.5,3299.1,0.001]
[1768650682061,4.65364262,3299.5,3299.1,1.56119537]
[1768650682062,1.6228413,3299.5,3299.1,1.56119537]
[1768650683561,4.59542436,3299.6,3299.1,1.56119537]
[1768650685257,0.81260132,3299.5,3299.1,1.56119537]
[1768650685563,1.56270365,3299.5,3299.1,1.56119537]
[1768650686332,4.59353948,3299.5,3299.1,0.001]
[1768650688666,1.56270365,3299.4,3299.1,0.001]
[1768650690671,3.03094595,3299.3,3299.1,0.001]
[1768650691036,4.5936496,3299.3,3299.1,0.001]
[1768650693370,4.5936496,3299.3,3298.7,1.56766793]
[1768650693371,1.57793099,3299.2,3298.7,1.56766793]
[1768650693547,1.57793099,3299.2,3298.7,0.00080883]
[1768650696176,4.60905443,3299.2,3298.7,0.00080883]
[1768650696966,1.57793099,3299.1,3298.7,0.00080883]
[1768650697561,1.57793099,3299.1,3298.7,1.56766793]
[1768650701671,0.002,3299.6,3298.8,1.5668591]
[1768650701875,3.03267225,3299.6,3298.8,1.5668591]
[1768650702041,0.002,3299.6,3298.8,1.5668591]
[1768650702545,0.002,3299.6,3299.0,1.5668591]
[1768650703271,0.002,3299.6,3299.0,1.5678591]
[1768650703471,0.002,3299.6,3299.1,1.5668591]
[1768650704679,0.002,3299.6,3299.1,4.59791832]
[1768650704881,0.002,3299.6,3299.2,1.5668591]
[1768650707373,0.002,3299.6,3299.3,1.5668591]
[1768650709789,0.002,3299.9,3299.4,1.5668591]
[1768650709990,0.002,3299.9,3299.4,1.88023092]
[1768650711687,0.002,3299.9,3299.5,3.03076223]
[1768650712084,0.002,3299.9,3299.6,1.6270804]
[1768650721474,0.002,3299.9,3299.7,1.6270804]
[1768650722094,0.00080465,3300.0,3299.7,1.6270804]
[1768650722299,0.00080465,3300.0,3299.9,1.6270804]
[1768650723407,0.00080465,3300.0,3299.8,0.46577398]
[1768650723595,0.00080465,3300.0,3299.7,1.6270804]
[1768650724919,1.69198807,3299.9,3299.3,3.03089405]
[1768650725084,1.69198807,3299.9,3299.3,4.65797445]
[1768650725279,1.69198807,3299.9,3299.4,1.6270804]
[1768650726505,1.69198807,3299.9,3299.6,0.001]
[1768650727107,1.69398807,3299.9,3299.6,0.001]
[1768650729099,0.002,3299.9,3299.6,0.001]
[1768650729297,5.1873004,3302.8,3299.8,1.6270804]
[1768650729298,1.69198807,3300.4,3299.8,1.6270804]
[1768650730311,4.72195647,3300.4,3299.8,1.6270804]
[1768650734511,1.69198807,3300.4,3299.9,1.6270804]
[1768650734704,3.53188091,3300.5,3299.9,1.6270804]
[1768650734886,0.28349263,3300.4,3299.9,1.6270804]
[1768650735089,3.53188091,3300.5,3299.9,1.6270804]
[1768650735288,0.28350984,3300.4,3299.9,1.6270804]
[1768650735488,5.22386898,3300.5,3299.9,1.6270804]
[1768650735689,0.28349379,3300.4,3299.9,1.6270804]
[1768650735915,5.22386898,3300.5,3299.9,1.6270804]
[1768650736117,0.28349359,3300.4,3299.9,1.6270804]
[1768650736320,5.22386898,3300.5,3299.9,1.6270804]
[1768650736523,0.28350154,3300.4,3299.9,1.6270804]
[1768650736690,5.22386898,3300.5,3299.9,1.6270804]
[1768650736889,0.2835016,3300.4,3299.9,1.6270804]
[1768650737102,5.22386898,3300.5,3299.9,1.6270804]
[1768650737297,5.00548101,3300.4,3299.9,1.6270804]
[1768650737501,4.72195284,3300.4,3299.9,1.6270804]
[1768650739227,0.002,3300.2,3299.9,1.6270804]
[1768650744626,0.002,3300.2,3300.0,1.5943658]
[1768650759547,0.002,3300.2,3299.8,1.55879986]
[1768650760234,0.002,3300.2,3299.9,1.55879986]
[1768650765446,0.002,3300.9,3300.4,0.00080457]
[1768650765447,1.7125279,3300.9,3300.4,0.00080457]
[1768650765644,1.7125279,3300.9,3300.4,0.50080457]
[1768650766023,1.7125279,3300.9,3300.4,1.78838005]
[1768650766215,3.03132643,3301.1,3300.5,1.28757548]
[1768650766216,1.7145279,3301.1,3300.5,1.28757548]
[1768650767133,0.002,3301.1,3300.5,1.46641349]
[1768650767631,0.002,3301.1,3300.7,1.28770235]
[1768650769848,0.002,3301.1,3300.7,4.31753306]
[1768650771164,3.02902351,3301.4,3300.8,1.28407434]
[1768650771165,1.7125279,3301.4,3300.8,1.28407434]
[1768650772067,1.5880671,3301.4,3300.8,4.31363483]
[1768650772272,1.5880671,3301.4,3300.8,1.28407434]
[1768650772428,1.5880671,3301.4,3300.8,4.31364056]
[1768650772629,1.5880671,3301.4,3300.8,1.28407434]
[1768650773370,0.002,3301.1,3300.8,1.28407434]
[1768650777360,0.002,3301.1,3300.8,4.74500749]
[1768650777553,0.002,3301.1,3300.8,4.74498352]
[1768650777755,0.002,3301.1,3300.8,1.71544398]
[1768650780235,1.5880671,3301.0,3300.8,0.4321747]
[1768650780466,1.5880671,3301.0,3300.8,0.00080506]
[1768650788686,0.002,3301.1,3300.8,0.00080506]
[1768650790466,0.002,3301.1,3300.8,1.66264435]
[1768650803597,0.002,3301.1,3300.9,2.06573271]
[1768650804166,0.002,3301.1,3300.8,0.00080506]
[1768650825107,2.15738226,3301.1,3300.8,0.00080506]
[1768650841838,0.002,3301.1,3300.8,0.00080506]
[1768650842841,2.30210992,3301.1,3300.8,0.00080506]
[1768650846306,3.03054698,3301.5,3300.8,2.17555773]
[1768650846507,5.91392259,3301.5,3300.8,2.17555773]
[1768650846804,2.30010992,3301.4,3300.9,2.17475267]
[1768650847000,0.001608,3301.5,3301.1,2.17475267]
[1768650848926,0.001608,3301.5,3301.1,3.02925302]
[1768650849121,0.001608,3301.5,3301.2,2.17475267]
[1768650853334,0.001608,3301.5,3301.2,3.13560462]
[1768650853832,0.001608,3301.5,3301.3,2.17475267]
[1768650855838,0.003608,3301.5,3301.3,2.17475267]
[1768650857738,0.003608,3301.5,3301.2,0.96085195]
[1768650858041,2.30371792,3301.5,3301.1,0.001]
[1768650862145,3.03253484,3301.5,3301.1,0.001]
[1768650862353,2.61083758,3301.4,3301.1,0.001]
[1768650867653,0.002,3301.2,3301.1,0.001]
[1768650880067,2.56237261,3301.2,3301.1,0.001]
[1768650889273,2.56398061,3301.5,3301.1,2.53124128]
[1768650889444,2.56398061,3301.5,3301.1,0.001]
[1768650890278,2.56037261,3301.4,3301.1,0.001]
[1768650901999,0.002,3301.2,3301.1,0.001]
[1768650959453,0.002,3301.2,3301.1,0.90964071]
[1768650972342,0.002,3301.2,3301.1,0.001]
[1768651021943,3.42299674,3301.2,3300.8,0.00080506]
[1768651022120,3.11181522,3301.2,3300.8,0.00080506]
[1768651022329,3.11262028,3301.2,3300.4,0.50080457]
[1768651022923,3.10981522,3301.0,3300.4,0.50080457]
[1768651023322,3.10981522,3301.0,3300.4,3.53073953]
[1768651023623,3.10981522,3301.0,3300.4,6.65899692]
[1768651023825,3.10981522,3301.0,3300.4,3.62906196]
[1768651025270,6.13921986,3301.0,3300.4,3.62906196]
[1768651025426,3.10981522,3300.9,3300.4,3.62906196]
[1768651028233,3.10981522,3300.9,3300.7,0.001]
[1768651028430,3.72373721,3300.9,3300.7,0.001]
[1768651030363,6.75322178,3300.9,3300.7,0.001]
[1768651030657,3.72373721,3300.9,3300.7,0.001]
[1768651031358,6.75323291,3300.9,3300.7,0.001]
[1768651032269,3.10981522,3300.8,3300.7,0.001]
[1768651041383,3.78513851,3300.8,3300.7,0.001]
[1768651043291,0.67532329,3300.8,3300.7,0.001]
[1768651047787,6.83436508,3300.8,3300.7,0.001]
[1768651047993,3.8047965,3300.8,3300.7,0.001]
[1768651051988,0.67532329,3300.8,3300.7,0.001]
[1768651053000,3.76333159,3300.8,3300.7,0.001]
[1768651053201,6.79290017,3300.8,3300.7,0.001]
[1768651053771,3.76333159,3300.8,3300.7,0.001]
[1768651061408,0.67532329,3300.8,3300.7,0.001]
[1768651061593,3.52936946,3301.1,3300.7,0.001]
[1768651061979,3.52936946,3301.1,3300.7,3.06715905]
[1768651067905,6.61737776,3301.1,3300.7,3.06715905]
[1768651068220,6.61737776,3301.1,3300.7,0.001]
[1768651068393,0.96493844,3301.0,3300.7,0.001]
[1768651071443,3.99439871,3301.0,3300.7,0.001]
[1768651075046,0.00280506,3301.2,3300.8,2.99485643]
[1768651084639,0.002,3300.9,3300.8,2.99485643]
[1768651084954,0.002,3300.9,3300.8,3.73502008]
[1768651085862,0.002,3300.9,3300.8,2.99485643]
[1768651112504,0.002,3300.9,3300.7,0.001]
[1768651113502,0.002,3300.9,3300.7,3.11602063]
[1768651124525,0.002,3300.9,3300.7,0.001]
[1768651128244,0.002,3300.9,3300.7,3.11602063]
[1768651128413,0.002,3300.9,3300.7,3.73060052]
[1768651133658,0.002,3300.9,3300.7,0.61557989]
[1768651142763,0.002,3300.9,3300.7,0.001]
[1768651142976,3.01872272,3300.8,3300.7,0.001]
[1768651143861,0.002,3300.9,3300.7,0.001]
[1768651144060,3.02072272,3300.9,3300.7,0.001]
[1768651161783,0.002,3300.9,3300.7,0.001]
[1768651184412,0.002,3300.9,3300.7,0.65613653]
[1768651198631,0.002,3300.9,3300.7,0.001]
[1768651198934,3.04706653,3300.9,3300.7,0.001]
[1768651210319,0.002,3300.9,3300.7,0.001]
[1768651215349,3.04706653,3300.9,3300.7,0.001]
[1768651237778,3.04706653,3300.9,3300.6,0.5]
[1768651237779,2.80761137,3300.8,3300.6,0.5]
[1768651238485,2.80761137,3300.8,3300.6,0.43638187]
[1768651238775,5.83720968,3300.8,3300.6,0.43638187]
[1768651238941,2.80761137,3300.7,3300.6,0.43638187]
[1768651249373,2.80761137,3300.7,3300.4,0.00080457]
[1768651249578,2.80761137,3300.6,3300.4,0.00080457]
[1768651250476,5.83742066,3300.6,3300.4,0.00080457]
[1768651254744,3.02980929,3300.6,3300.4,0.00080457]
[1768651254949,2.9147147,3300.5,3300.4,0.00080457]
[1768651258080,5.94455866,3300.5,3300.4,0.00080457]
[1768651260191,6.90037496,3300.5,3300.4,0.00080457]
[1768651265294,0.9558163,3300.5,3300.4,0.00080457]
[1768651265517,3.49863567,3300.7,3300.4,0.00080457]
[1768651266684,3.02975524,3300.6,3300.4,0.00080457]
[1768651267698,5.94446994,3300.6,3300.4,0.00080457]
[1768651271079,2.9147147,3300.5,3300.4,0.00080457]
[1768651271284,5.94455866,3300.5,3300.4,0.00080457]
[1768651271601,6.90037488,3300.5,3300.4,0.00080457]
[1768651273303,6.90037488,3300.5,3299.7,2.87631174]
[1768651273304,2.9147147,3300.4,3299.7,2.87631174]
[1768651274404,5.94474227,3300.3,3299.7,2.87631174]
[1768651274700,5.94474227,3300.3,3299.6,0.00180473]
[1768651274701,2.9147147,3300.2,3299.6,0.00180473]
[1768651274905,3.40373038,3300.2,3299.6,2.87811647]
[1768651275686,3.40373038,3300.2,3299.6,0.00180473]
[1768651276087,3.40373038,3300.2,3299.6,2.87811647]
[1768651278110,3.40373038,3300.2,3299.6,0.00180473]
[1768651278403,2.9147147,3300.0,3299.6,0.00180473]
[1768651279007,2.9147147,3300.0,3299.6,2.87811647]
[1768651279206,3.0302112,3300.1,3299.6,2.87811647]
[1768651280810,5.9449259,3300.1,3299.6,2.87811647]
[1768651282879,5.9449259,3300.1,3299.9,0.001]
[1768651288211,2.9147147,3300.1,3299.9,0.001]
[1768651289016,2.86109837,3300.2,3299.9,0.001]
[1768651293621,5.89122856,3300.2,3299.9,0.001]
[1768651293810,6.83334538,3300.2,3299.9,0.001]
[1768651331713,5.89122856,3300.2,3299.9,0.001]
[1768651339735,2.86109837,3300.2,3299.9,0.001]
[1768651341525,5.89123693,3300.2,3299.9,0.001]
[1768651342098,2.86109837,3300.2,3299.9,0.001]
[1768651345233,2.93385162,3300.1,3299.9,0.001]
[1768651351523,6.86348113,3300.1,3299.9,0.001]
[1768651357516,3.92962951,3300.1,3299.9,0.001]
[1768651357722,3.09328138,3300.0,3299.9,0.001]
[1768651367053,3.09328138,3299.9,3299.6,0.00180473]
[1768651370829,6.56062466,3300.0,3299.6,0.00180473]
[1768651370830,3.09328138,3299.7,3299.6,0.00180473]
[1768651373748,6.73623672,3299.7,3299.6,0.00180473]
[1768651374324,3.70565819,3299.7,3299.6,0.00180473]
[1768651374729,6.73623672,3299.7,3299.6,0.00180473]
[1768651377538,3.70565819,3299.7,3299.6,0.00180473]
[1768651377960,0.61237681,3299.7,3299.6,0.00180473]
[1768651378183,5.97281338,3299.9,3299.6,0.00180473]
[1768651393788,9.00322587,3299.9,3299.6,0.00180473]
[1768651393997,2.94240089,3299.8,3299.6,0.00180473]
[1768651395388,5.97294457,3299.8,3299.6,0.00180473]
[1768651397581,2.94240089,3299.8,3299.6,0.00180473]
[1768651397762,3.58968381,3299.8,3299.6,0.00180473]
[1768651398090,6.62018332,3299.8,3299.6,0.00180473]
[1768651409097,3.02732931,3299.7,3299.1,3.02611944]
[1768651410294,6.05793509,3299.7,3299.1,3.02611944]
[1768651414204,6.05793509,3299.7,3299.1,3.63195341]
[1768651420076,9.08854087,3299.7,3299.1,3.63195341]
[1768651420278,9.08854087,3299.7,3299.1,3.02611944]
[1768651420605,3.05215703,3299.6,3299.1,3.02611944]
[1768651422111,6.08287951,3299.6,3299.1,3.02611944]
[1768651423411,6.08287951,3299.6,3299.4,0.001]
[1768651424217,3.05215703,3299.6,3299.4,0.001]
[1768651424403,3.05215703,3299.5,3299.4,0.001]
[1768651425408,3.03071934,3299.6,3299.4,0.001]
[1768651425915,6.08287637,3299.6,3299.4,0.001]
[1768651435120,7.04423058,3299.6,3299.4,0.001]
[1768651435421,3.00608103,3299.5,3299.4,0.001]
[1768651436225,6.03684326,3299.5,3299.4,0.001]
[1768651440125,3.03076223,3299.5,3299.4,0.001]
[1768651441728,3.96743524,3299.6,3299.4,0.001]
[1768651441929,3.50608103,3299.7,3299.4,0.001]
[1768651442350,6.53670958,3299.7,3299.4,0.001]
[1768651442703,0.00080473,3300.0,3299.4,2.84754121]
[1768651442909,0.28399179,3299.9,3299.4,2.84754121]
[1768651443111,3.03113217,3300.0,3299.4,2.84754121]
[1768651443839,0.00080473,3300.0,3299.5,2.84654121]
[1768651444043,0.00080473,3300.0,3299.5,3.43438637]
[1768651445790,0.00080473,3300.0,3299.7,2.84654121]
[1768651446112,0.5,3300.6,3299.7,2.84654121]
[1768651446113,3.52978881,3300.6,3299.7,2.84654121]
[1768651446313,0.28372033,3300.5,3299.7,2.84654121]
[1768651446514,3.00608103,3300.5,3299.7,2.84654121]
[1768651446713,3.00608103,3300.5,3299.7,3.34654121]
[1768651448541,3.00608103,3300.5,3299.9,2.84654121]
[1768651448713,0.5,3300.6,3299.9,2.84654121]
[1768651449651,3.52977425,3300.6,3299.9,2.84654121]
[1768651450253,3.52977425,3300.6,3300.0,2.84654121]
[1768651450567,3.50608103,3300.6,3300.0,2.84654121]
[1768651450771,6.53588685,3300.6,3300.0,2.84654121]
[1768651451643,3.52980582,3300.6,3300.0,2.84654121]
[1768651452254,3.00608103,3300.5,3300.0,2.84654121]
[1768651453374,3.00608103,3300.5,3299.8,3.38616658]
[1768651453576,3.00608103,3300.5,3299.9,0.69167073]
[1768651453872,6.03601679,3300.4,3299.9,3.53821194]
[1768651455082,3.00608103,3300.4,3299.9,3.53821194]
[1768651457064,3.00608103,3300.4,3300.0,0.001]
[1768651457472,0.002,3300.2,3300.0,0.001]
[1768651489499,2.82787214,3300.2,3300.0,0.001]
[1768651495099,0.002,3300.2,3300.0,0.001]
[1768651501696,2.81785723,3300.2,3300.0,0.001]
[1768651502323,0.002,3300.2,3300.0,0.001]
[1768651522118,0.002,3300.5,3300.2,2.58129679]
[1768651523944,0.002,3300.5,3300.3,2.57582314]
[1768651524242,0.00080457,3300.8,3300.3,2.57382314]
[1768651526952,0.00080457,3300.8,3300.5,2.56585295]
[1768651528052,0.00280457,3300.8,3300.5,2.56585295]
[1768651528256,0.00280457,3300.8,3300.6,2.56325292]
[1768651533369,0.00280457,3300.8,3300.6,5.59300054]
[1768651533861,0.00280506,3301.2,3300.7,2.54587785]
[1768651534048,0.00361737,3302.2,3301.5,2.54107328]
[1768651534253,0.00361737,3302.2,3301.6,2.67039132]
[1768651534254,2.65396615,3302.1,3301.6,2.67039132]
[1768651534448,2.65396615,3302.1,3301.5,0.00080536]
[1768651534649,2.65396615,3301.4,3300.8,0.00080514]
[1768651534861,0.00160816,3301.5,3300.4,2.43918401]
[1768651534862,2.65396615,3301.1,3300.4,0.00080465]
[1768651535031,2.65396615,3301.1,3300.4,3.03068738]
[1768651536856,2.65396615,3301.1,3300.4,5.46608193]
[1768651537031,0.00080514,3301.2,3300.6,2.43539455]
[1768651537232,2.65477129,3301.2,3300.6,2.43539455]
[1768651538574,2.65477129,3301.2,3300.6,5.46513923]
[1768651538862,2.65477129,3301.2,3300.7,2.43167651]
[1768651540072,2.65477129,3301.2,3300.7,2.43267651]
[1768651540272,0.002,3300.8,3300.7,2.43267651]
[1768651540637,3.02911155,3301.3,3300.8,2.42606757]
[1768651540843,3.02847462,3302.0,3301.2,2.42526243]
[1768651541156,2.65477151,3301.9,3301.2,2.42526243]
[1768651541971,0.00080536,3301.9,3301.2,2.42526243]
[1768651542279,0.91057192,3302.6,3301.8,0.00161753]
[1768651542280,0.002,3302.6,3301.8,0.00161753]
[1768651542471,2.65596615,3302.6,3301.9,2.41824954]
[1768651542673,2.65596615,3302.6,3301.9,3.02854228]
[1768651542861,2.65596615,3302.6,3302.0,2.41649327]
[1768651543171,0.9119677,3302.5,3302.0,2.41649327]
[1768651545158,6.59395506,3302.5,3302.0,2.41649327]
[1768651546046,2.65396615,3302.4,3301.8,2.41296369]
[1768651546258,3.93998891,3302.5,3301.9,2.41134616]
[1768651546849,6.59395506,3302.5,3301.9,2.41134616]
[1768651548589,5.68559772,3302.5,3301.9,2.41134616]
[1768651551094,2.65396615,3302.4,3301.8,1.04579532]
[1768651551255,2.65396615,3302.4,3301.8,3.44894999]
[1768651551457,2.65396615,3302.4,3301.9,2.40156629]
[1768651552356,0.002,3302.2,3301.9,2.40156629]
[1768651552556,0.002,3302.2,3301.9,2.74630245]
[1768651554986,0.002,3302.2,3301.9,0.34473616]
[1768651555291,2.64579366,3302.2,3301.9,0.34473616]
[1768651555497,2.64579366,3302.2,3301.8,1.04579532]
[1768651555693,2.64579366,3302.2,3301.8,0.50161753]
[1768651563870,2.64579366,3302.2,3302.1,0.001]
[1768651564172,2.64579366,3302.2,3301.8,0.50161753]
[1768651568004,2.64579366,3302.2,3301.8,0.00161753]
[1768651569076,2.64379366,3302.1,3301.8,0.00161753]
[1768651573216,2.64379366,3302.1,3301.5,0.00080544]
[1768651573217,2.64379366,3302.0,3301.5,0.00080544]
[1768651575920,2.64379366,3302.0,3301.8,0.001]
[1768651576217,2.64379366,3301.9,3301.5,0.00080544]
[1768651583227,2.72012596,3302.1,3301.5,2.36109797]
[1768651583929,2.72012596,3302.1,3301.5,0.00080544]
[1768651587234,0.00361753,3302.2,3301.6,2.35612017]
[1768651587605,0.00361753,3302.2,3301.8,0.001]
[1768651587911,2.72374349,3302.2,3301.8,0.001]
[1768651588220,0.002,3302.1,3301.8,0.001]
[1768651588929,2.72212596,3302.1,3301.8,0.001]
[1768651594528,0.002,3302.1,3301.8,0.001]
[1768651601040,0.002,3302.1,3301.8,2.34305388]
[1768651621077,0.002,3302.1,3301.8,5.37167448]
[1768651621751,0.002,3302.1,3301.8,2.34305388]
[1768651621947,0.002,3302.1,3301.8,5.37170045]
[1768651622152,0.002,3302.1,3301.8,2.34305388]
[1768651622864,0.002,3302.1,3301.8,5.37169855]
[1768651623041,0.002,3302.1,3301.8,2.34305388]
[1768651633467,0.002,3302.1,3301.9,2.32037169]
[1768651633869,0.002,3302.1,3301.9,0.03028559]
[1768651636078,0.002,3302.1,3301.8,2.2910861]
[1768651636249,0.002,3302.1,3301.8,5.31971082]
[1768651637181,0.002,3302.1,3301.9,0.03028558]
[1768651641264,0.002,3302.1,3301.8,5.31971082]
[1768651641489,0.002,3302.1,3301.8,2.2910861]
[1768651642587,0.002,3302.1,3301.8,5.31972998]
[1768651643899,0.002,3302.1,3301.8,2.2910861]
[1768651644100,0.002,3302.1,3301.8,5.31973566]
[1768651651607,0.002,3302.1,3301.8,0.001]
[1768651655073,2.71070808,3302.1,3301.8,0.001]
[1768651720252,0.002,3302.1,3301.8,1.52878159]
[1768651720461,0.002,3302.1,3301.9,1.55806718]
[1768651722042,0.002,3302.1,3301.9,4.5865831]
[1768651724464,2.38567981,3302.4,3301.9,4.5865831]
[1768651728453,2.38567981,3302.4,3301.9,3.05880151]
[1768651728772,2.38567981,3302.4,3301.9,3.37779513]
[1768651729671,0.002,3302.1,3301.9,3.37779513]
[1768651729857,2.38567981,3302.3,3301.9,3.37779513]
[1768651731843,2.38567981,3302.3,3301.9,3.34750954]
[1768651740211,2.38567981,3302.3,3301.9,3.37779513]
[1768651740493,2.38567981,3302.3,3301.9,3.34750954]
[1768651765124,2.38567981,3302.3,3301.9,0.31899362]
[1768651765423,2.07416611,3302.3,3301.9,0.5]
[1768651766518,2.07416611,3302.3,3301.8,0.00261769]
[1768651766723,2.07416611,3302.3,3301.8,0.50261769]
[1768651766915,2.07416611,3302.3,3301.8,3.5312369]
[1768651767115,2.07416611,3302.3,3301.8,0.50261769]
[1768651768113,2.07416611,3302.3,3301.8,3.53126788]
[1768651775531,2.07416611,3302.3,3301.8,0.50261769]
[1768651776263,2.07416611,3302.3,3302.1,0.001]
[1768651787922,0.97416611,3302.3,3302.1,0.001]
[1768651815600,4.0023773,3302.3,3302.1,0.001]
[1768651815790,0.97416611,3302.3,3302.1,0.001]
[1768651821011,0.002,3302.4,3302.1,0.001]
[1768651821718,2.13341709,3302.4,3302.1,0.001]
[1768651829624,2.13141709,3302.3,3302.1,0.001]
[1768651829782,3.63766273,3302.4,3302.1,0.001]
[1768651829783,5.76907982,3302.4,3302.1,0.001]
[1768651830112,6.67754994,3302.4,3302.1,0.001]
[1768651844128,3.64943407,3302.4,3302.1,0.001]
[1768651844294,3.04188721,3302.4,3302.1,0.001]
[1768651845097,0.00361036,3302.5,3302.1,2.21490448]
[1768651850430,2.10516828,3302.5,3302.1,2.21490448]
[1768651852538,2.10516828,3302.5,3302.1,0.001]
[1768651852539,5.13320593,3302.5,3302.1,0.001]
[1768651855163,2.15924566,3302.3,3302.1,0.001]
[1768651863042,5.18746425,3302.3,3302.1,0.001]
[1768651863365,2.15924566,3302.3,3302.1,0.001]
[1768651864859,3.0281282,3302.4,3302.1,0.001]
[1768651865074,5.18737386,3302.4,3302.1,0.001]
[1768651883092,3.0281282,3302.4,3302.1,0.001]
[1768651883290,3.0281282,3302.4,3301.8,0.00261769]
[1768651883291,2.22298775,3302.3,3301.8,0.00261769]
[1768651884269,2.22298775,3302.2,3301.8,0.00261769]
[1768651885204,3.02837588,3302.1,3301.8,0.00261769]
[1768651890097,5.25130905,3302.2,3301.8,2.20203998]
[1768651890305,3.0283213,3302.2,3301.8,2.20203998]
[1768651890601,3.93670689,3302.3,3301.8,2.20203998]
[1768651894306,3.93670689,3302.3,3302.1,0.001]
[1768651894507,1.0100758,3302.2,3301.8,2.20203998]
[1768651894687,3.93670689,3302.3,3301.8,2.20203998]
[1768651900085,6.1527576,3302.3,3301.8,2.20203998]
[1768651905829,6.1527576,3302.3,3302.1,0.001]
[1768651906125,6.1527576,3302.3,3301.8,2.20203998]
[1768651911107,2.21605071,3302.2,3301.8,2.20203998]
[1768651914395,5.24437765,3302.2,3301.8,2.20203998]
[1768651917123,3.02832694,3302.2,3301.8,2.20203998]
[1768651918443,3.02832694,3302.2,3302.1,0.001]
[1768651918639,3.95623631,3302.2,3301.8,2.20203998]
[1768651918846,3.02832694,3302.2,3301.8,2.20203998]
[1768651929462,5.34239663,3302.3,3301.8,2.20203998]
[1768651930054,5.34239663,3302.3,3302.1,0.001]
[1768651930375,6.250875,3302.3,3302.1,0.001]
[1768651935175,5.34244735,3302.2,3302.1,0.001]
[1768651935460,6.27035232,3302.2,3301.8,0.00261769]
[1768651941565,6.27035232,3302.2,3302.1,0.001]
[1768651941864,6.27035232,3302.2,3301.8,0.00261769]
[1768651942160,6.27035232,3302.2,3301.8,2.30337198]
[1768651947986,3.95618914,3302.2,3301.8,2.30337198]
[1768651953583,3.95618914,3302.2,3302.1,0.001]
[1768651953755,3.95618914,3302.2,3301.8,2.30337198]
[1768651954896,0.92790497,3302.2,3301.8,2.30337198]
[1768651955075,6.25370284,3302.3,3301.8,2.30337198]
[1768651965364,6.25370284,3302.3,3302.1,0.001]
[1768651974509,3.93670827,3302.3,3302.1,0.001]
[1768651977621,0.90847837,3302.3,3302.1,0.001]
[1768651978612,3.93667121,3302.3,3302.1,0.001]
[1768651978818,0.90847837,3302.3,3302.1,0.001]
[1768651979045,3.93668417,3302.3,3302.1,0.001]
[1768651981534,2.19017534,3302.2,3302.1,0.001]
[1768651982023,2.19017534,3302.2,3301.8,2.19265342]
[1768651983134,3.9940541,3302.3,3301.8,2.19265342]
[1768651983309,0.90847837,3302.2,3301.8,2.19265342]
[1768651988438,0.90847837,3302.2,3302.1,0.001]
[1768651988647,1.52116432,3302.2,3301.9,2.19003573]
[1768651988940,0.90847837,3302.2,3301.9,2.19003573]
[1768652001060,0.90847837,3302.2,3302.1,0.001]
[1768652015868,0.90847837,3302.2,3302.1,2.31676642]
[1768652016070,3.0281122,3302.4,3302.1,2.31676642]
[1768652016363,0.9084371,3302.4,3302.1,2.31676642]
[1768652018803,3.93659325,3302.4,3302.1,2.31676642]
[1768652019007,4.91722031,3302.4,3302.1,2.31676642]
[1768652026235,4.91922031,3302.4,3302.1,2.31676642]
[1768652026740,4.91922031,3302.4,3302.1,0.001]
[1768652037150,4.91922031,3302.4,3302.1,2.26642778]
[1768652038951,3.93859325,3302.4,3302.1,2.26642778]
[1768652046058,0.9104371,3302.4,3302.1,2.26642778]
[1768652048098,3.93856736,3302.4,3302.1,2.26642778]
[1768652051020,3.03013026,3302.4,3302.1,2.26642778]
[1768652058232,0.002,3302.4,3302.1,2.26642778]
[1768652061128,0.00361036,3302.5,3302.2,2.26542778]
[1768652061129,1e-08,3302.5,3302.2,2.26542778]
[1768652061932,0.002,3302.4,3302.2,2.26542778]
[1768652063533,0.002,3302.4,3302.3,2.17996876]
[1768652066035,0.002,3302.4,3302.3,5.20816123]
[1768652066341,0.002,3302.4,3302.3,6.10516112]
[1768652066541,1e-08,3302.5,3302.4,2.17996876]
[1768652070417,1e-08,3302.5,3302.4,2.67996876]
[1768652070953,1e-08,3302.5,3302.4,5.70806953]
[1768652071160,0.002,3302.9,3302.6,2.17996876]
[1768652072149,0.002,3302.9,3302.6,2.74882804]
[1768652084261,0.002,3302.9,3302.6,2.17996876]
[1768652086267,0.002,3302.9,3302.7,2.33825004]
[1768652091457,0.002,3302.9,3302.8,2.33825004]
[1768652092066,0.12510221,3302.9,3302.8,2.33825004]
[1768652093160,1e-08,3302.9,3302.8,5.36598408]
[1768652093479,0.00080948,3303.2,3302.9,2.18176859]
[1768652093654,0.90895784,3303.2,3302.9,2.18176859]
[1768652093853,3.13083948,3303.2,3302.8,1.03659841]
[1768652094067,2.22269112,3303.2,3302.8,1.03659841]
[1768652094367,0.90814836,3303.1,3302.8,1.03659841]
[1768652097572,0.91014836,3303.1,3302.8,1.03659841]
[1768652097974,0.002,3303.1,3302.8,1.03659841]
[1768652098291,0.90814836,3303.0,3302.8,1.03659841]
[1768652103506,0.002,3303.1,3302.8,1.03659841]
[1768652104208,2.22188164,3303.0,3302.5,0.001]
[1768652104380,2.22188164,3303.0,3302.6,0.5]
[1768652110110,2.22188164,3303.0,3302.9,0.001]
[1768652110623,0.002,3303.1,3302.9,0.001]
[1768652111121,2.22388164,3303.1,3302.9,0.001]
[1768652118026,0.002,3303.1,3302.9,0.001]
[1768652118239,0.002,3303.1,3302.9,2.18276859]
[1768652118406,0.002,3303.1,3302.9,2.40104545]
[1768652118606,3.03240596,3303.5,3303.0,2.18176859]
[1768652118807,0.28361614,3303.4,3303.0,2.18176859]
[1768652119012,6.16243596,3303.5,3303.0,2.18176859]
[1768652119212,0.28361566,3303.4,3303.0,2.18176859]
[1768652119432,6.16243596,3303.5,3303.0,2.18176859]